[Event "SVK ECo-C Extraliga 2018-19"]
[Site "Slovakia"]
[Date "2018.12.08"]
[Round "3"]
[White "Haring, Viktor"]
[Black "Bombek, Peter"]
[Result "0-1"]
[ECO "C03"]
[WhiteElo "2314"]
[BlackElo "2217"]
[Annotator "NA"]
[PlyCount "118"]
[EventDate "2018.11.10"]
[EventType "team-tourn"]
[EventCountry "SVK"]
[SourceTitle "playchess.com"]
[Source "ChessBase"]
[SourceQuality "1"]
[WhiteTeam "Liptovska"]
[BlackTeam "Dubnica"]
[TimeControl "40/5400+30:1800+30"]

1. e4 {[%emt 0:00:00]} e6 {[%emt 0:00:00]} 2. d4 {[%emt 0:00:00]} d5 {[%emt 0:00:00]} 3. Nd2 {[%emt 0:00:01]} a6 {[%emt 0:00:16]} 4. Ngf3 {[%emt 0:01:45]} c5 {[%emt 0:00:14]} 5. exd5 {[%emt 0:04:56]} exd5 {[%emt 0:00:31]} 6. dxc5 {[%emt 0:00:19]} Bxc5 {[%emt 0:00:14]} 7. Nb3 $11 {[%emt 0:01:39] LiveBook: 352 Games} Bb6 {[%emt 0:01:38]} 8. Bd3 {[%emt 0:05:01]} Qe7+ {[%emt 0:02:13]} 9. Qe2 {[%emt 0:03:44]} Nc6 {[%emt 0:00:47]} 10. Bg5 {[%emt 0:10:05]} f6 {[%emt 0:06:29]} 11. Bf4 {[%emt 0:10:16]} Bg4 {[%emt 0:06:41]} 12. h3 {[%emt 0:21:04]} Bxf3 {[%emt 0:03:38]} 13. gxf3 {[%emt 0:00:15]} Qxe2+ {[%emt 0:05:11]} 14. Kxe2 {[%emt 0:01:12]} Nge7 {[%emt 0:02:32]} 15. c4 {[%emt 0:03:34]} Nd4+ {[%emt 0:02:37]} 16. Nxd4 {[%emt 0:00:41]} Bxd4 {[%emt 0:00:04]} 17. Rhe1 {[%emt 0:07:43]} dxc4 {[%emt 0:04:49]} 18. Bxc4 {[%emt 0:00:18]} Rc8 {[%emt 0:07:11]} 19. Be6 {[%emt 0:03:44]} Rc6 {[%emt 0:05:33]} 20. Bb3 {[%emt 0:07:35]} Bxb2 {[%emt 0:10:06]} 21. Rad1 {[%emt 0:00:24]} Be5 {[%emt 0:04:12]} 22. Bxe5 {[%emt 0:04:39]} fxe5 {[%emt 0:00:11]} 23. Kf1 {[%emt 0:00:07]} Rf8 {[%emt 0:14:32]} 24. Rxe5 {[%emt 0:00:11]} Rc7 {[%emt 0:04:13]} 25. Kg2 {[%emt 0:02:00]} Rf5 {[%emt 0:01:04]} 26. Re4 {[%emt 0:00:41]} Rg5+ {[%emt 0:04:06]} 27. Kf1 {[%emt 0:00:48]} g6 {[%emt 0:01:58]} 28. h4 {[%emt 0:03:25]} Rgc5 {[%emt 0:01:57]} 29. Kg2 {[%emt 0:01:20]} Kf8 {[%emt 0:05:48]} 30. Rd8+ {[%emt 0:02:43]} Kg7 {[%emt 0:00:05]} 31. Kh3 {[%emt 0:03:54]} Kh6 {[%emt 0:01:22]} 32. Be6 {[%emt 0:00:48]} Nc6 {[%emt 0:01:25]} 33. Rf8 {[%emt 0:00:29]} Re7 {[%emt 0:01:04]} 34. Bg8 {[%emt 0:00:44]} Rf5 {[%emt 0:01:05]} 35. Rxf5 {[%emt 0:00:45]} gxf5 {[%emt 0:00:40]} 36. Re3 {[%emt 0:00:15]} Rxe3 {[%emt 0:02:42]} 37. fxe3 {[%emt 0:00:07]} b5 {[%emt 0:00:38]} 38. Kg3 {[%emt 0:00:12]} Kg7 {[%emt 0:00:09]} 39. Bb3 {[%emt 0:01:10]} Kf6 {[%emt 0:00:19]} 40. Bc2 {[%emt 0:00:44]} Nb4 {[%emt 0:00:24]} 41. Bb3 {[%emt 0:02:21]} a5 {[%emt 0:02:51]} 42. a3 {[%emt 0:05:00]} a4 {[%emt 0:07:15]} 43. Bd1 {[%emt 0:04:40]} Nd5 {[%emt 0:04:24]} 44. e4 {[%emt 0:09:49]} f4+ {[%emt 0:02:09]} 45. Kf2 {[%emt 0:03:42]} Ne3 {[%emt 0:01:14]} 46. Ke2 {[%emt 0:03:48]} Ke5 {[%emt 0:04:36]} 47. Kd2 {[%emt 0:01:37]} Nc4+ {[%emt 0:01:04]} 48. Kc3 {[%emt 0:01:11]} Nxa3 {[%emt 0:00:31]} 49. Be2 {[%emt 0:02:15]} Kd6 {[%emt 0:02:26]} 50. Kb4 {[%emt 0:00:15]} Nc2+ {[%emt 0:01:14]} 51. Kc3 {[%emt 0:00:07]} Ne1 {[%emt 0:00:54]} 52. Bxb5 {[%emt 0:00:26]} Nxf3 {[%emt 0:00:59]} 53. Bxa4 {[%emt 0:00:36]} Nxh4 {[%emt 0:00:44]} 54. Kd4 {[%emt 0:00:56]} Nf3+ {[%emt 0:00:15]} 55. Kd3 {[%emt 0:00:15]} Ke5 {[%emt 0:00:20]} 56. Bd7 {[%emt 0:01:03]} Ng5 {[%emt 0:00:33]} 57. Bf5 {[%emt 0:00:34]} h5 {[%emt 0:00:23]} 58. Ke2 {[%emt 0:00:33]} Nxe4 {[%emt 0:00:31]} 59. Bg6 {[%emt 0:00:08]} h4 {[%emt 0:03:27]} 0-1

[Event "SVK ECo-C Extraliga 2018-19"]
[Site "Slovakia"]
[Date "2018.12.08"]
[Round "3"]
[White "Holtman, Teodor"]
[Black "Janko, Zoltan"]
[Result "1-0"]
[ECO "B30"]
[WhiteElo "2273"]
[BlackElo "2261"]
[Annotator "NA"]
[PlyCount "67"]
[EventDate "2018.11.10"]
[EventType "team-tourn"]
[EventCountry "SVK"]
[SourceTitle "playchess.com"]
[Source "ChessBase"]
[SourceQuality "1"]
[WhiteTeam "Snina"]
[BlackTeam "Komarno"]
[TimeControl "40/5400+30:1800+30"]

1. e4 c5 2. Nf3 Nc6 3. Nc3 a6 4. d4 cxd4 5. Nxd4 e5 6. Nf5 d6 7. Bc4 Be6 8. Bf1 {[%emt 0:03:12]} Bc8 {[%emt 0:07:11]} 9. Bc4 {[%emt 0:08:23]} Be6 {[%emt 0:08:18]} 10. Nd5 {[%emt 0:03:42] LiveBook: 3 Games} g6 {[%emt 0:01:42]} 11. Nfe3 {[%emt 0:02:06]} b5 {[%emt 0:00:48]} 12. Be2 {[%emt 0:03:14]} Bg7 {[%emt 0:05:58]} 13. O-O {[%emt 0:00:45]} Nd4 {[%emt 0:03:59]} 14. a4 {[%emt 0:04:45]} Ne7 {[%emt 0:11:19]} 15. Nxe7 {[%emt 0:04:29]} Kxe7 $16 {[%emt 0:00:10]} 16. Bg4 {[%emt 0:09:08]} f5 {[%emt 0:02:42]} 17. exf5 {[%emt 0:01:23]} gxf5 {[%emt 0:00:31]} 18. Bh3 {[%emt 0:01:00]} Qd7 {[%emt 0:04:45]} 19. axb5 {[%emt 0:09:57]} f4 {[%emt 0:12:25]} 20. Nd5+ {[%emt 0:00:37]} Kf7 {[%emt 0:18:34]} 21. Qh5+ {[%emt 0:02:16]} Kf8 {[%emt 0:00:08]} 22. Nb6 {[%emt 0:17:38]} Qxb5 {[%emt 0:02:01]} 23. Bxe6 {[%emt 0:00:48]} Nxe6 {[%emt 0:00:59]} 24. Nxa8 {[%emt 0:01:00]} Ke7 {[%emt 0:01:23]} 25. Bd2 {[%emt 0:05:07]} Rxa8 {[%emt 0:03:23]} 26. Qxh7 {[%emt 0:04:04]} Qxb2 {[%emt 0:01:35]} 27. Rab1 {[%emt 0:05:05]} Qd4 {[%emt 0:04:06]} 28. Rb7+ {[%emt 0:01:13]} Kf6 {[%emt 0:00:09]} 29. Qh4+ {[%emt 0:02:58]} Kg6 {[%emt 0:00:05]} 30. Qg4+ {[%emt 0:01:53]} Kf6 {[%emt 0:00:06]} 31. Qh4+ {[%emt 0:00:08]} Kg6 {[%emt 0:00:05]} 32. Qe7 {[%emt 0:00:47]} Qd5 {[%emt 0:09:58]} 33. Rd7 {[%emt 0:02:44]} Rd8 {[%emt 0:00:20]} 34. Qf7+ 1-0

[Event "SVK ECo-C Extraliga 2018-19"]
[Site "Slovakia"]
[Date "2018.12.08"]
[Round "3"]
[White "Haring, Filip"]
[Black "Zpevak, Pavel"]
[Result "1-0"]
[ECO "B48"]
[WhiteElo "2258"]
[BlackElo "2338"]
[Annotator "NA"]
[PlyCount "77"]
[EventDate "2018.11.10"]
[EventType "team-tourn"]
[EventCountry "SVK"]
[SourceTitle "playchess.com"]
[Source "ChessBase"]
[SourceQuality "1"]
[WhiteTeam "Liptovska"]
[BlackTeam "Dubnica"]
[TimeControl "40/5400+30:1800+30"]

1. e4 {[%emt 0:00:00]} c5 {[%emt 0:00:00]} 2. Nf3 {[%emt 0:00:00]} e6 {[%emt 0:00:00]} 3. d4 {[%emt 0:00:12]} cxd4 {[%emt 0:00:00]} 4. Nxd4 {[%emt 0:00:10]} Nc6 {[%emt 0:00:31]} 5. Nc3 {[%emt 0:01:02]} Qc7 {[%emt 0:00:37]} 6. Be3 {[%emt 0:01:11]} a6 {[%emt 0:00:25]} 7. Qf3 {[%emt 0:02:32]} Nf6 {[%emt 0:05:02]} 8. O-O-O $11 {[%emt 0:02:19] LiveBook: 309 Games} d6 {[%emt 0:05:33]} 9. Nxc6 {[%emt 0:13:46]} bxc6 {[%emt 0:00:53]} 10. g4 {[%emt 0:00:15]} h5 {[%emt 0:10:28]} 11. g5 {[%emt 0:03:47]} Ng4 {[%emt 0:00:22]} 12. g6 {[%emt 0:20:19]} fxg6 {[%emt 0:06:01]} 13. h3 {[%emt 0:04:44]} Nxe3 {[%emt 0:02:17]} 14. fxe3 {[%emt 0:02:25]} Qf7 {[%emt 0:12:36]} 15. Qg2 {[%emt 0:05:37]} e5 {[%emt 0:02:34]} 16. Be2 {[%emt 0:02:11]} Be7 {[%emt 0:08:19]} 17. Rhf1 {[%emt 0:01:34]} Qe6 {[%emt 0:01:35]} 18. b3 {[%emt 0:03:30]} g5 {[%emt 0:01:29]} 19. Bc4 {[%emt 0:05:21]} Qxh3 {[%emt 0:01:02]} 20. Bf7+ {[%emt 0:02:54]} Kd8 {[%emt 0:01:13]} 21. Qd2 {[%emt 0:00:35]} Qd7 {[%emt 0:07:06]} 22. Na4 {[%emt 0:01:49]} Qc7 {[%emt 0:13:26]} 23. c4 {[%emt 0:03:39]} Bg4 {[%emt 0:01:57]} 24. c5 {[%emt 0:11:05]} Bxd1 {[%emt 0:01:30]} 25. Rxd1 {[%emt 0:00:16]} Rb8 {[%emt 0:03:11]} 26. Qc3 {[%emt 0:05:17]} Rb5 {[%emt 0:07:29]} 27. Qxe5 {[%emt 0:03:29]} Kc8 {[%emt 0:02:22]} 28. Qe6+ {[%emt 0:02:31]} Qd7 {[%emt 0:00:57]} 29. Qc4 {[%emt 0:01:17]} Kc7 {[%emt 0:01:29]} 30. Be6 {[%emt 0:00:30]} Qd8 {[%emt 0:02:34]} 31. Qd4 {[%emt 0:00:30]} Kb8 {[%emt 0:01:13]} 32. cxd6 {[%emt 0:00:35]} Qxd6 {[%emt 0:00:39]} 33. Qxg7 {[%emt 0:00:32]} Qa3+ {[%emt 0:00:32]} 34. Kb1 {[%emt 0:00:20]} Rf8 {[%emt 0:00:35]} 35. Nc3 {[%emt 0:00:42]} Rf2 {[%emt 0:00:54]} 36. Qh8+ {[%emt 0:00:23]} Bf8 {[%emt 0:00:36]} 37. Rd8+ {[%emt 0:00:21]} Kb7 {[%emt 0:00:00]} 38. Rd7+ Kb8 39. Rd8+ 1-0

[Event "SVK ECo-C Extraliga 2018-19"]
[Site "Slovakia"]
[Date "2018.12.08"]
[Round "3"]
[White "Petran, Peter"]
[Black "Bury, Rastislav"]
[Result "1-0"]
[ECO "A00"]
[WhiteElo "2256"]
[BlackElo "2144"]
[Annotator "NA"]
[PlyCount "141"]
[EventDate "2018.11.10"]
[EventType "team-tourn"]
[EventCountry "SVK"]
[SourceTitle "playchess.com"]
[Source "ChessBase"]
[SourceQuality "1"]
[WhiteTeam "Slovan"]
[BlackTeam "Osuske"]
[TimeControl "40/5400+30:1800+30"]

1. g3 {[%emt 0:00:00]} Nf6 {[%emt 0:00:00]} 2. Bg2 {[%emt 0:00:00]} d5 {[%emt 0:00:14]} 3. Nf3 {[%emt 0:00:06]} e6 {[%emt 0:01:17]} 4. O-O {[%emt 0:00:09]} Be7 {[%emt 0:00:16]} 5. c4 {[%emt 0:00:42]} O-O {[%emt 0:00:53]} 6. b3 {[%emt 0:00:15]} b6 {[%emt 0:00:58]} 7. Bb2 {[%emt 0:00:08]} Bb7 {[%emt 0:00:10]} 8. d4 {[%emt 0:01:25]} Nbd7 {[%emt 0:02:25]} 9. cxd5 {[%emt 0:00:32]} exd5 {[%emt 0:03:53]} 10. Nc3 {[%emt 0:00:39]} Re8 {[%emt 0:03:49] LiveBook: 98 Games} 11. e3 {[%emt 0:01:57] E17: Queen's Indian: 4 g3 Bb7 5 Bg2 Be7} Ba6 $146 {[%emt 0:05:48]} ({Predecessor:} 11... Bf8 12. Qc2 Rc8 13. Rfd1 a6 {1-0 (42) So,W (2812)-Bacrot,E (2708) Paris 2017}) 12. Re1 {[%emt 0:00:38]} Bd6 {[%emt 0:00:06]} 13. Nh4 {[%emt 0:09:59]} Bb7 {[%emt 0:03:40]} 14. Rc1 {[%emt 0:01:51]} a6 {[%emt 0:01:10]} 15. a3 {[%emt 0:02:30]} Rc8 {[%emt 0:06:43]} 16. b4 {[%emt 0:00:31]} Bf8 {[%emt 0:01:42]} 17. Qb3 {[%emt 0:02:30]} c6 {[%emt 0:02:11]} 18. a4 {[%emt 0:00:57]} b5 {[%emt 0:02:13]} 19. a5 {[%emt 0:00:07]} Qe7 $11 {[%emt 0:02:08]} 20. Ba3 {[%emt 0:00:39]} Qe6 {[%emt 0:06:40]} 21. Nf3 {[%emt 0:04:09]} Qf5 {[%emt 0:10:21]} 22. Nh4 {[%emt 0:05:03]} Qe6 {[%emt 0:02:52]} 23. Qc2 {[%emt 0:03:26]} Ne4 {[%emt 0:06:20]} 24. Nf3 {[%emt 0:06:50]} Nxc3 {[%emt 0:00:56]} 25. Qxc3 {[%emt 0:00:08]} Bd6 {[%emt 0:02:15]} 26. Nd2 {[%emt 0:00:43]} Nf6 {[%emt 0:01:57]} 27. f3 {[%emt 0:02:13]} h5 {[%emt 0:03:40]} 28. Nb3 {[%emt 0:03:57]} Nd7 {[%emt 0:04:18]} 29. e4 {[%emt 0:00:56]} dxe4 {[%emt 0:00:40]} 30. fxe4 {[%emt 0:00:18]} Be7 {[%emt 0:05:00]} 31. Bb2 {[%emt 0:04:10]} Bf6 {[%emt 0:04:00]} 32. Qf3 {[%emt 0:07:47]} Be7 {[%emt 0:02:37]} 33. Nc5 {[%emt 0:03:59]} Nxc5 {[%emt 0:00:19]} 34. bxc5 {[%emt 0:00:19]} Qa2 {[%emt 0:02:47]} 35. Re2 {[%emt 0:07:42]} Qxa5 {[%emt 0:02:40]} 36. Rf2 {[%emt 0:01:51]} Rf8 {[%emt 0:01:13]} 37. Qxh5 {[%emt 0:00:20]} Qd8 {[%emt 0:03:45]} 38. Rcf1 {[%emt 0:02:11]} g6 {[%emt 0:01:20]} 39. Qf3 {[%emt 0:00:48]} Rc7 {[%emt 0:01:37]} 40. Qc3 {[%emt 0:00:57]} f6 {[%emt 0:00:16]} 41. Qd2 {[%emt 0:44:05]} Kg7 {[%emt 0:31:03]} 42. Bc3 {[%emt 0:00:44]} Qd7 {[%emt 0:03:08]} 43. Kh1 {[%emt 0:02:23]} Rcc8 {[%emt 0:01:23]} 44. Qb2 {[%emt 0:05:18]} Qe6 {[%emt 0:00:00]} 45. h4 {[%emt 0:00:00]} Rb8 {[%emt 0:00:00]} 46. Kh2 {[%emt 0:00:00]} b4 {[%emt 0:00:00]} 47. Qxb4 {[%emt 0:00:00]} Ba8 {[%emt 0:00:00]} 48. Qa5 {[%emt 0:00:00]} Qc4 {[%emt 0:00:00]} 49. Qa1 {[%emt 0:00:00]} Rb3 {[%emt 0:00:00]} 50. Rc1 {[%emt 0:00:00]} Qd3 {[%emt 0:00:00]} 51. Rf3 {[%emt 0:00:00]} Qe2 {[%emt 0:00:00]} 52. Rcf1 {[%emt 0:00:00]} Rbb8 {[%emt 0:00:00]} 53. R1f2 {[%emt 0:00:00]} Qc4 {[%emt 0:00:00]} 54. Qa2 {[%emt 0:00:00]} Qxa2 {[%emt 0:01:52]} 55. Rxa2 {[%emt 0:00:00]} Bb7 {[%emt 0:00:04]} 56. Rb2 {[%emt 0:00:00]} Ba8 {[%emt 0:00:02]} 57. Rff2 {[%emt 0:00:10]} Rfc8 {[%emt 0:01:18]} 58. Bf1 {[%emt 0:00:38]} Rb5 {[%emt 0:01:23]} 59. Bxb5 {[%emt 0:01:55]} axb5 {[%emt 0:00:04]} 60. Ra2 {[%emt 0:00:29]} Bb7 {[%emt 0:01:31]} 61. Ra7 {[%emt 0:00:09]} Rc7 {[%emt 0:00:14]} 62. Bb4 {[%emt 0:01:20]} Rd7 {[%emt 0:00:12]} 63. d5 {[%emt 0:00:27]} Bc8 {[%emt 0:00:17]} 64. Rfa2 {[%emt 0:00:57]} Kf7 {[%emt 0:00:31]} 65. Rxd7 {[%emt 0:02:27]} Bxd7 {[%emt 0:00:05]} 66. Ra7 {[%emt 0:00:20]} Ke8 {[%emt 0:00:16]} 67. d6 {[%emt 0:00:53]} Bf8 68. Kg2 {[%emt 0:01:15]} Bh6 {[%emt 0:00:53]} 69. Kf2 {[%emt 0:00:12]} Bc1 {[%emt 0:00:07]} 70. Bc3 {[%emt 0:01:09]} f5 {[%emt 0:00:22]} 71. e5 {[%emt 0:00:59]} 1-0

[Event "SVK ECo-C Extraliga 2018-19"]
[Site "Slovakia"]
[Date "2018.12.08"]
[Round "3"]
[White "Molnar, Erno"]
[Black "Krak, Tomas"]
[Result "0-1"]
[ECO "B35"]
[WhiteElo "2252"]
[BlackElo "2298"]
[Annotator "NA"]
[PlyCount "62"]
[EventDate "2018.11.10"]
[EventType "team-tourn"]
[EventCountry "SVK"]
[SourceTitle "playchess.com"]
[Source "ChessBase"]
[SourceQuality "1"]
[WhiteTeam "Komarno"]
[BlackTeam "Snina"]
[TimeControl "40/5400+30:1800+30"]

1. e4 c5 2. Nf3 Nc6 3. d4 cxd4 4. Nxd4 g6 5. Nc3 Bg7 6. Be3 Nf6 7. Bc4 O-O 8. Bb3 d6 9. f3 Bd7 10. Qd2 Na5 11. O-O-O Nxb3+ 12. cxb3 Qb8 (12... Rb8 13. Kb1 b5 14. g4 b4 15. Nce2 Qa5 16. h4 Rfc8 17. h5 Nxe4 18. fxe4 Qe5 19. hxg6 hxg6 20. Ka1 Qxe4 {0-1 (61) Saric,I (2666)-Bologan,V (2655) Poikovsky 2014}) 13. Bg5 {[#]} Qd8 $146 {[%emt 0:04:12]} ({Predecessor:} 13... b5 14. Bxf6 Bxf6 15. Nd5 Bh4 16. Qf4 e6 17. Qxh4 exd5 18. exd5 Qb7 19. Rhe1 Qxd5 20. Ne2 {½-½ (38) Pirs,M (2520)-Miras Garcia,E (2516) ICCF email 2015}) 14. Be3 {[%emt 0:07:46]} Qb8 {[%emt 0:00:00] B78: Sicilian Dragon: Yugoslav Attack, 9 Bc4 Bd7 10 0-0-0 Rc8} 15. Bg5 {[%emt 0:04:35]} Re8 {[%emt 0:22:21]} 16. h4 {[%emt 0:07:08]} (16. Kb1 $16) 16... b5 {[%emt 0:01:38]} 17. Bxf6 {[%emt 0:16:16]} Bxf6 {[%emt 0:00:48]} 18. h5 {[%emt 0:01:47]} Bg7 {[%emt 0:09:39]} 19. hxg6 {[%emt 0:06:56]} hxg6 {[%emt 0:07:11]} 20. Rh2 {[%emt 0:11:49]} d5 {[%emt 0:11:58]} 21. Rdh1 {[%emt 0:13:12]} Qe5 $11 {[%emt 0:01:55]} ({Black should play} 21... dxe4 $17 22. Nc2 (22. fxe4 b4 $17) 22... Rd8 23. fxe4 b4) 22. Nde2 {[%emt 0:01:49]} d4 {[%emt 0:03:51]} 23. Nd1 {[%emt 0:00:25]} d3 {[%emt 0:18:36]} 24. Qxd3 {[%emt 0:05:15]} Red8 {[%emt 0:00:49]} 25. Nec3 {[%emt 0:05:29]} Rac8 {[%emt 0:05:11]} 26. Kb1 {[%emt 0:02:02]} Be6 {[%emt 0:00:58]} 27. Qe2 {[%emt 0:02:29]} b4 {[%emt 0:02:06]} 28. Na4 {[%emt 0:00:19]} Bd7 {[%emt 0:01:26]} 29. Ne3 {[%emt 0:03:32]} Bb5 {[%emt 0:00:06]} 30. Qf2 {[%emt 0:02:02]} Bd3+ {[%emt 0:00:11]} 31. Ka1 {[%emt 0:00:08]} Qxh2 {[%emt 0:00:08]} 0-1

[Event "SVK ECo-C Extraliga 2018-19"]
[Site "Slovakia"]
[Date "2018.12.08"]
[Round "3"]
[White "Veres, Andrej"]
[Black "Cech, Pavel"]
[Result "1/2-1/2"]
[ECO "D10"]
[WhiteElo "2235"]
[BlackElo "2327"]
[Annotator "NA"]
[PlyCount "98"]
[EventDate "2018.11.10"]
[EventType "team-tourn"]
[EventCountry "SVK"]
[SourceTitle "playchess.com"]
[Source "ChessBase"]
[SourceQuality "1"]
[WhiteTeam "Dubnica"]
[BlackTeam "Liptovska"]
[TimeControl "40/5400+30:1800+30"]

1. d4 {[%emt 0:00:00]} d5 {[%emt 0:00:00]} 2. Nf3 {[%emt 0:00:35]} Nf6 {[%emt 0:00:00]} 3. c4 {[%emt 0:01:25]} c6 {[%emt 0:00:00]} 4. cxd5 {[%emt 0:02:37]} cxd5 {[%emt 0:00:00]} 5. Nc3 {[%emt 0:00:37]} Nc6 {[%emt 0:00:06]} 6. Bf4 {[%emt 0:03:08]} e6 {[%emt 0:01:04]} 7. e3 {[%emt 0:02:54]} Nh5 $14 {[%emt 0:01:22] LiveBook: 192 Games} 8. Be5 {[%emt 0:02:28]} f6 {[%emt 0:25:18]} 9. Bg3 {[%emt 0:05:22]} g6 {[%emt 0:02:15]} 10. Be2 {[%emt 0:10:27]} Be7 {[%emt 0:12:23]} 11. O-O {[%emt 0:11:22]} Nxg3 {[%emt 0:07:54]} 12. hxg3 {[%emt 0:00:50]} O-O {[%emt 0:00:12]} 13. Rc1 {[%emt 0:01:59]} Bd7 {[%emt 0:01:41]} 14. e4 {[%emt 0:03:57]} Nb4 {[%emt 0:10:13]} 15. exd5 {[%emt 0:05:43]} Nxd5 {[%emt 0:00:15]} 16. Nxd5 {[%emt 0:00:55]} exd5 {[%emt 0:00:04]} 17. Qb3 {[%emt 0:00:06]} Bc6 {[%emt 0:06:17]} 18. Ne1 {[%emt 0:07:07]} Qb6 {[%emt 0:06:16]} 19. Nc2 {[%emt 0:06:36]} Qxb3 {[%emt 0:02:27]} 20. axb3 {[%emt 0:00:01]} Rfe8 {[%emt 0:02:13]} 21. Rfe1 {[%emt 0:07:26]} Kf7 {[%emt 0:01:18]} 22. Bf3 {[%emt 0:02:53]} Bf8 {[%emt 0:06:35]} 23. g4 {[%emt 0:12:10]} Rad8 {[%emt 0:02:33]} 24. g3 {[%emt 0:01:06]} Bh6 {[%emt 0:06:00]} 25. Ra1 {[%emt 0:00:02]} Rxe1+ {[%emt 0:01:16]} 26. Nxe1 {[%emt 0:02:26]} a6 {[%emt 0:00:15]} 27. Nd3 {[%emt 0:01:57]} Bd2 {[%emt 0:00:38]} 28. Rd1 {[%emt 0:01:39]} Ba5 {[%emt 0:00:46]} 29. Nc5 {[%emt 0:01:32]} Re8 {[%emt 0:00:26]} 30. Rc1 {[%emt 0:01:07]} Re1+ {[%emt 0:00:37]} 31. Rxe1 {[%emt 0:00:34]} Bxe1 {[%emt 0:00:03]} 32. Kf1 {[%emt 0:00:14]} Bb4 {[%emt 0:01:29]} 33. Ke2 {[%emt 0:01:00]} Ke7 {[%emt 0:01:32]} 34. Nd3 {[%emt 0:00:25]} Bd6 {[%emt 0:00:40]} 35. Nf4 {[%emt 0:00:27]} Bxf4 {[%emt 0:00:08]} 36. gxf4 {[%emt 0:00:05]} h6 {[%emt 0:00:18]} 37. Ke3 {[%emt 0:01:10]} Ke6 {[%emt 0:01:05]} 38. Bd1 {[%emt 0:00:34]} f5 {[%emt 0:01:46]} 39. gxf5+ {[%emt 0:02:05]} Kxf5 {[%emt 0:00:31]} 40. Bc2+ {[%emt 0:00:20]} Kf6 {[%emt 0:00:23]} 41. b4 {[%emt 0:30:58]} Bd7 {[%emt 0:04:08]} 42. Kf3 {[%emt 0:00:00]} Bf5 {[%emt 0:02:14]} 43. Bb3 {[%emt 0:00:00]} Ke6 {[%emt 0:01:21]} 44. Kg3 {[%emt 0:00:00]} Kd6 {[%emt 0:00:19]} 45. Ba4 {[%emt 0:00:00]} Kc7 {[%emt 0:00:42]} 46. Bd1 {[%emt 0:00:00]} Kb6 {[%emt 0:11:17]} 47. Be2 {[%emt 0:00:00]} Kc6 {[%emt 0:02:36]} 48. b5+ {[%emt 0:00:00]} axb5 {[%emt 0:06:59]} 49. b4 {[%emt 0:00:00]} Kd6 {[%emt 0:00:31]} 1/2-1/2

[Event "SVK ECo-C Extraliga 2018-19"]
[Site "Slovakia"]
[Date "2018.12.08"]
[Round "3"]
[White "Karas, Marek"]
[Black "Briestensky, Rastislav"]
[Result "1-0"]
[ECO "D37"]
[WhiteElo "2224"]
[BlackElo "2331"]
[Annotator "NA"]
[PlyCount "121"]
[EventDate "2018.11.10"]
[EventType "team-tourn"]
[EventCountry "SVK"]
[SourceTitle "playchess.com"]
[Source "ChessBase"]
[SourceQuality "1"]
[WhiteTeam "Osuske"]
[BlackTeam "Slovan"]
[TimeControl "40/5400+30:1800+30"]

1. d4 {[%emt 0:00:00]} Nf6 {[%emt 0:00:00]} 2. c4 {[%emt 0:00:00]} e6 {[%emt 0:00:00]} 3. Nc3 {[%emt 0:00:00]} d5 {[%emt 0:01:34]} 4. Nf3 {[%emt 0:01:37]} Be7 {[%emt 0:04:22]} 5. Bf4 {[%emt 0:00:37]} O-O {[%emt 0:00:42]} 6. e3 {[%emt 0:00:21]} Nh5 {[%emt 0:06:35]} 7. Bg3 {[%emt 0:01:27] LiveBook: 4 Games} c6 {[%emt 0:07:54]} 8. Bd3 {[%emt 0:01:52]} f5 {[%emt 0:01:32]} 9. Qc2 {[%emt 0:07:31]} Na6 {[%emt 0:18:13]} 10. a3 {[%emt 0:01:48]} dxc4 {[%emt 0:03:23]} 11. Bxc4 {[%emt 0:01:07]} b5 {[%emt 0:00:17]} 12. Be2 {[%emt 0:03:21]} Nxg3 {[%emt 0:02:07]} 13. hxg3 $16 {[%emt 0:00:19]} ({Reject} 13. fxg3 $6 Bb7 $11) 13... Bf6 {[%emt 0:14:31]} 14. O-O {[%emt 0:11:40]} Bd7 {[%emt 0:05:53]} 15. e4 {[%emt 0:05:44]} Qb6 {[%emt 0:01:51]} 16. a4 {[%emt 0:07:14]} Kh8 {[%emt 0:03:06]} 17. Rfd1 {[%emt 0:03:19]} Rac8 {[%emt 0:01:25]} 18. Ne5 {[%emt 0:01:24]} Bxe5 {[%emt 0:02:08]} 19. dxe5 {[%emt 0:00:18]} Be8 {[%emt 0:02:04]} 20. Qd2 {[%emt 0:02:52]} fxe4 {[%emt 0:04:06]} 21. Qd4 {[%emt 0:05:45]} Qxd4 {[%emt 0:02:43]} 22. Rxd4 {[%emt 0:00:08]} Nc5 {[%emt 0:00:06]} 23. Rad1 {[%emt 0:02:49]} Bg6 {[%emt 0:03:07]} 24. axb5 {[%emt 0:01:12]} cxb5 {[%emt 0:01:56]} 25. Bxb5 {[%emt 0:04:52]} a6 {[%emt 0:03:16]} 26. Be2 {[%emt 0:04:19]} h6 {[%emt 0:00:53]} 27. Rc4 {[%emt 0:03:13]} Nd3 {[%emt 0:03:49]} 28. Rxc8 {[%emt 0:00:30]} Rxc8 {[%emt 0:00:04]} 29. Bxd3 {[%emt 0:00:24]} exd3 {[%emt 0:00:02]} 30. f4 {[%emt 0:01:20]} Rb8 {[%emt 0:00:13]} 31. Rd2 {[%emt 0:00:31]} Rb4 {[%emt 0:00:09]} 32. Kf2 {[%emt 0:01:03]} h5 {[%emt 0:00:48]} 33. Na2 {[%emt 0:03:53]} Rc4 {[%emt 0:00:55]} 34. b3 {[%emt 0:00:27]} Rc5 {[%emt 0:02:10]} 35. Nb4 {[%emt 0:02:46]} a5 {[%emt 0:00:12]} 36. Nxd3 {[%emt 0:01:11]} Rc3 {[%emt 0:00:03]} 37. Nb2 {[%emt 0:04:44]} Rxb3 {[%emt 0:00:48]} 38. Nc4 {[%emt 0:00:44]} a4 {[%emt 0:00:35]} 39. Rd8+ {[%emt 0:00:55]} Kh7 {[%emt 0:00:05]} 40. Ra8 {[%emt 0:00:40]} Rb4 {[%emt 0:00:22]} 41. Nd6 {[%emt 0:30:39]} Bc2 {[%emt 0:33:40]} 42. Ra7 {[%emt 0:02:11]} Kh6 {[%emt 0:00:00]} 43. Ra6 {[%emt 0:00:00]} Bd3 {[%emt 0:00:00]} 44. Ra7 {[%emt 0:00:00]} Bc2 {[%emt 0:00:00]} 45. Ra6 {[%emt 0:00:00]} Bd3 {[%emt 0:00:00]} 46. Ra8 {[%emt 0:00:00]} Kh7 {[%emt 0:00:00]} 47. Ra7 {[%emt 0:00:00]} Kh6 {[%emt 0:00:00]} 48. Nb7 {[%emt 0:00:00]} Rb2+ {[%emt 0:01:37]} 49. Ke3 {[%emt 0:00:11]} Bb5 {[%emt 0:01:50]} 50. Nd6 {[%emt 0:01:08]} Bc6 {[%emt 0:01:09]} 51. f5 {[%emt 0:01:30]} exf5 {[%emt 0:00:42]} 52. Ra6 {[%emt 0:01:18]} Rc2 {[%emt 0:00:28]} 53. e6 {[%emt 0:02:42]} a3 {[%emt 0:00:57]} 54. Nxf5+ {[%emt 0:03:06]} Kg5 {[%emt 0:00:22]} 55. Nd4 {[%emt 0:00:37]} Rc5 {[%emt 0:01:07]} 56. Nxc6 {[%emt 0:00:38]} a2 {[%emt 0:00:56]} 57. Nd4 {[%emt 0:00:56]} Re5+ {[%emt 0:00:17]} 58. Kf2 {[%emt 0:00:21]} Re4 {[%emt 0:00:46]} 59. Rxa2 {[%emt 0:00:45]} Rxd4 {[%emt 0:00:10]} 60. e7 {[%emt 0:00:07]} Re4 {[%emt 0:00:28]} 61. Re2 {[%emt 0:00:09]} 1-0